[Event "*** Titled Tuesday Blitz"]
[Site "Chess.com"]
[Date "2020.02.04"]
[Round "4"]
[White "maciek_92"]
[Black "MartinCerveny"]
[Result "0-1"]
[WhiteElo "2833"]
[BlackElo "2602"]
[TimeControl "180+2"]
[EndTime "13:53:08 PST"]
[Termination "MartinCerveny won by checkmate"]

1. c4 {[%clk 0:03:01.9]} 1... Nf6 {[%clk 0:02:59.2]} 2. Nc3 {[%clk 0:03:02.7]}
2... c5 {[%clk 0:03:00]} 3. g3 {[%clk 0:03:03.6]} 3... Nc6 {[%clk 0:03:00.2]} 4.
Bg2 {[%clk 0:03:04.9]} 4... g6 {[%clk 0:03:01.4]} 5. e3 {[%clk 0:03:06.4]} 5...
Bg7 {[%clk 0:02:59.3]} 6. Nge2 {[%clk 0:03:07]} 6... O-O {[%clk 0:02:59.1]} 7.
O-O {[%clk 0:03:08.1]} 7... d6 {[%clk 0:02:56.3]} 8. d4 {[%clk 0:03:08.2]} 8...
Bg4 {[%clk 0:02:51]} 9. d5 {[%clk 0:03:04.6]} 9... Ne5 {[%clk 0:02:43.7]} 10. f3
{[%clk 0:03:02.5]} 10... Bd7 {[%clk 0:02:35.5]} 11. b3 {[%clk 0:03:02.2]} 11...
g5 {[%clk 0:02:36.1]} 12. f4 {[%clk 0:02:54]} 12... gxf4 {[%clk 0:02:25.2]} 13.
exf4 {[%clk 0:02:48.4]} 13... Ng6 {[%clk 0:02:25.6]} 14. h3 {[%clk 0:02:40.5]}
14... a6 {[%clk 0:02:25.4]} 15. Qd3 {[%clk 0:02:36]} 15... b5 {[%clk 0:02:22.6]}
16. Bd2 {[%clk 0:02:37]} 16... bxc4 {[%clk 0:02:22.5]} 17. bxc4 {[%clk
0:02:38.9]} 17... Rb8 {[%clk 0:02:23.1]} 18. g4 {[%clk 0:02:33.3]} 18... h6
{[%clk 0:01:52.7]} 19. Rab1 {[%clk 0:02:28.2]} 19... Qc7 {[%clk 0:01:47]} 20.
Rxb8 {[%clk 0:02:00.5]} 20... Rxb8 {[%clk 0:01:48.9]} 21. g5 {[%clk 0:02:02]}
21... hxg5 {[%clk 0:01:47.9]} 22. fxg5 {[%clk 0:02:03]} 22... Nh7 {[%clk
0:01:47.3]} 23. Be4 {[%clk 0:01:52.1]} 23... Nhf8 {[%clk 0:01:16.7]} 24. Qg3
{[%clk 0:01:23.7]} 24... Ne5 {[%clk 0:01:11.8]} 25. h4 {[%clk 0:01:18.7]} 25...
Nxc4 {[%clk 0:01:08.8]} 26. Bc1 {[%clk 0:01:18.3]} 26... Qc8 {[%clk 0:00:55.2]}
27. h5 {[%clk 0:01:05.8]} 27... Bg4 {[%clk 0:00:50.4]} 28. h6 {[%clk 0:00:59.9]}
28... Be5 {[%clk 0:00:46]} 29. Bf4 {[%clk 0:00:30.6]} 29... Bh5 {[%clk
0:00:44.6]} 30. Bxe5 {[%clk 0:00:28.7]} 30... Nxe5 {[%clk 0:00:46.5]} 31. Bf5
{[%clk 0:00:30.2]} 31... Qc7 {[%clk 0:00:40]} 32. Nf4 {[%clk 0:00:30.9]} 32...
Bg6 {[%clk 0:00:38.4]} 33. Bxg6 {[%clk 0:00:16.8]} 33... Nfxg6 {[%clk 0:00:39]}
34. Nxg6 {[%clk 0:00:17.9]} 34... fxg6 {[%clk 0:00:35.9]} 35. Ne2 {[%clk
0:00:13.8]} 35... c4 {[%clk 0:00:28.9]} 36. Nf4 {[%clk 0:00:14.7]} 36... c3
{[%clk 0:00:27]} 37. Ne6 {[%clk 0:00:07.3]} 37... Qb6+ {[%clk 0:00:26.2]} 38.
Kh1 {[%clk 0:00:07.7]} 38... c2 {[%clk 0:00:24.9]} 39. h7+ {[%clk 0:00:06.4]}
39... Kh8 {[%clk 0:00:23.4]} 40. Qf4 {[%clk 0:00:07.3]} 40... Qb1 {[%clk
0:00:20.1]} 41. Kg2 {[%clk 0:00:08.8]} 41... c1=Q {[%clk 0:00:18.4]} 42. Rxc1
{[%clk 0:00:08.9]} 42... Qb2+ {[%clk 0:00:16]} 43. Kh3 {[%clk 0:00:06.7]} 43...
Qe2 {[%clk 0:00:16.8]} 44. Rf1 {[%clk 0:00:07.1]} 44... Qh5+ {[%clk 0:00:16.3]}
45. Kg3 {[%clk 0:00:08.6]} 45... Qe2 {[%clk 0:00:15.4]} 46. Rf2 {[%clk
0:00:08.6]} 46... Qd3+ {[%clk 0:00:16]} 47. Kh2 {[%clk 0:00:09.4]} 47... Qxd5
{[%clk 0:00:17.2]} 48. Nf8 {[%clk 0:00:10.2]} 48... Rb1 {[%clk 0:00:10]} 49. Rg2
{[%clk 0:00:02.6]} 49... Qd1 {[%clk 0:00:10.8]} 50. Nxg6+ {[%clk 0:00:02.5]}
50... Kxh7 {[%clk 0:00:09.9]} 51. Qh4+ {[%clk 0:00:03.1]} 51... Kxg6 {[%clk
0:00:09.1]} 52. Qh6+ {[%clk 0:00:04.7]} 52... Kf5 {[%clk 0:00:10.2]} 53. Qh7+
{[%clk 0:00:05.6]} 53... Kf4 {[%clk 0:00:11]} 54. Rf2+ {[%clk 0:00:03.1]} 54...
Nf3+ {[%clk 0:00:11.8]} 55. Rxf3+ {[%clk 0:00:03.9]} 55... Kxf3 {[%clk
0:00:12.8]} 56. Qh5+ {[%clk 0:00:04.8]} 56... Ke3 {[%clk 0:00:13.8]} 57. Qh3+
{[%clk 0:00:05.5]} 57... Kd4 {[%clk 0:00:14.8]} 58. Qh4+ {[%clk 0:00:05.8]}
58... Kc5 {[%clk 0:00:15.9]} 59. Qf2+ {[%clk 0:00:07.5]} 59... Kc6 {[%clk
0:00:16.4]} 60. g6 {[%clk 0:00:09.4]} 60... Qh1+ {[%clk 0:00:16.4]} 61. Kg3
{[%clk 0:00:11.1]} 61... Rg1+ {[%clk 0:00:17.7]} 62. Kf4 {[%clk 0:00:12.2]}
62... e5+ {[%clk 0:00:18.2]} 63. Kf5 {[%clk 0:00:11.8]} 63... Qh5+ {[%clk
0:00:19.3]} 64. Ke6 {[%clk 0:00:13.2]} 64... Rxg6+ {[%clk 0:00:20.6]} 65. Ke7
{[%clk 0:00:14.1]} 65... Qh7+ {[%clk 0:00:21.1]} 66. Kd8 {[%clk 0:00:16]} 66...
Rg8+ {[%clk 0:00:21.8]} 67. Qf8 {[%clk 0:00:17.5]} 67... Rxf8# {[%clk
0:00:22.9]} 0-1

[Event "*** Titled Tuesday Blitz"]
[Site "Chess.com"]
[Date "2020.02.04"]
[Round "4"]
[White "Terao90"]
[Black "Dhaydon19"]
[Result "0-1"]
[WhiteElo "2424"]
[BlackElo "2670"]
[TimeControl "180+2"]
[EndTime "13:53:16 PST"]
[Termination "Dhaydon19 won by checkmate"]

1. d4 {[%clk 0:03:01.9]} 1... c6 {[%clk 0:03:01.7]} 2. c4 {[%clk 0:02:56.3]}
2... d5 {[%clk 0:03:03.6]} 3. Nf3 {[%clk 0:02:52.9]} 3... Nf6 {[%clk 0:03:04.3]}
4. e3 {[%clk 0:02:49.1]} 4... e6 {[%clk 0:03:05.5]} 5. Nc3 {[%clk 0:02:49.2]}
5... Bd6 {[%clk 0:03:06.1]} 6. Qc2 {[%clk 0:02:46.6]} 6... Nbd7 {[%clk
0:03:07.3]} 7. b3 {[%clk 0:02:41.2]} 7... O-O {[%clk 0:03:07.1]} 8. Bb2 {[%clk
0:02:41.2]} 8... dxc4 {[%clk 0:03:07.8]} 9. bxc4 {[%clk 0:02:37.3]} 9... e5
{[%clk 0:03:08.5]} 10. Be2 {[%clk 0:02:36.1]} 10... Qe7 {[%clk 0:03:08.5]} 11.
O-O {[%clk 0:02:36.4]} 11... Re8 {[%clk 0:03:09]} 12. Rfd1 {[%clk 0:02:17.4]}
12... e4 {[%clk 0:03:08.7]} 13. Nd2 {[%clk 0:02:17.6]} 13... Nf8 {[%clk
0:03:09.4]} 14. Re1 {[%clk 0:02:11.7]} 14... Bf5 {[%clk 0:02:59.3]} 15. Qb3
{[%clk 0:02:11.9]} 15... Ng6 {[%clk 0:02:58.3]} 16. f3 {[%clk 0:02:07.7]} 16...
exf3 {[%clk 0:02:52.1]} 17. Bxf3 {[%clk 0:02:08.2]} 17... Ng4 {[%clk 0:02:40.5]}
18. Bxg4 {[%clk 0:02:02.9]} 18... Bxg4 {[%clk 0:02:41.2]} 19. e4 {[%clk
0:02:02.7]} 19... Bf4 {[%clk 0:02:40.6]} 20. Nf1 {[%clk 0:02:03.1]} 20... Nh4
{[%clk 0:02:31.4]} 21. Qc2 {[%clk 0:01:54.2]} 21... Qg5 {[%clk 0:02:25.3]} 22.
Qf2 {[%clk 0:01:50]} 22... Bh5 {[%clk 0:02:09.6]} 23. Ng3 {[%clk 0:01:35.2]}
23... Bg4 {[%clk 0:01:57.5]} 24. Bc1 {[%clk 0:01:34.2]} 24... Bxc1 {[%clk
0:01:56.2]} 25. Raxc1 {[%clk 0:01:36.1]} 25... Rad8 {[%clk 0:01:55]} 26. e5
{[%clk 0:01:34.2]} 26... Ng6 {[%clk 0:01:52]} 27. Nce4 {[%clk 0:01:33.8]} 27...
Qh4 {[%clk 0:01:38.5]} 28. Nd6 {[%clk 0:01:32.9]} 28... Re7 {[%clk 0:01:38.2]}
29. Rf1 {[%clk 0:01:24.2]} 29... c5 {[%clk 0:01:28.8]} 30. h3 {[%clk 0:01:17.2]}
30... Bd7 {[%clk 0:01:18.8]} 31. Kh2 {[%clk 0:00:41.7]} 31... Qxd4 {[%clk
0:01:11.8]} 32. Ndf5 {[%clk 0:00:13.5]} 32... Bxf5 {[%clk 0:01:09.9]} 33. Nxf5
{[%clk 0:00:15.4]} 33... Qxe5+ {[%clk 0:01:09.3]} 34. Kh1 {[%clk 0:00:16.8]}
34... Red7 {[%clk 0:01:04.2]} 35. Rce1 {[%clk 0:00:17.2]} 35... Qc7 {[%clk
0:01:03.7]} 36. h4 {[%clk 0:00:16.4]} 36... h5 {[%clk 0:01:00]} 37. Qf3 {[%clk
0:00:16.3]} 37... Qc6 {[%clk 0:00:44.1]} 38. Qxh5 {[%clk 0:00:16.7]} 38... Rd2
{[%clk 0:00:45]} 39. Re2 {[%clk 0:00:15.2]} 39... Rxe2 {[%clk 0:00:42.9]} 40.
Qxe2 {[%clk 0:00:17.1]} 40... Re8 {[%clk 0:00:44]} 41. Qf3 {[%clk 0:00:13.3]}
41... Re4 {[%clk 0:00:43.1]} 42. h5 {[%clk 0:00:11]} 42... Nh4 {[%clk
0:00:37.9]} 43. Qg3 {[%clk 0:00:05.5]} 43... Nxf5 {[%clk 0:00:33.7]} 44. Rxf5
{[%clk 0:00:07.4]} 44... Qe6 {[%clk 0:00:29.5]} 45. Rxc5 {[%clk 0:00:06.6]}
45... Kh7 {[%clk 0:00:20.1]} 46. Rg5 {[%clk 0:00:07.4]} 46... Qf6 {[%clk
0:00:16.7]} 47. Qd3 {[%clk 0:00:06.6]} 47... Qf4 {[%clk 0:00:17.1]} 48. Rg3
{[%clk 0:00:04.6]} 48... f5 {[%clk 0:00:17.2]} 49. Qf3 {[%clk 0:00:05.6]} 49...
Re1+ {[%clk 0:00:17.6]} 50. Kh2 {[%clk 0:00:06.6]} 50... Qxf3 {[%clk 0:00:18.4]}
51. Rxf3 {[%clk 0:00:07.7]} 51... Re5 {[%clk 0:00:20.3]} 52. Rc3 {[%clk
0:00:08.1]} 52... b6 {[%clk 0:00:20.5]} 53. Rb3 {[%clk 0:00:10]} 53... Kh6
{[%clk 0:00:21.1]} 54. Ra3 {[%clk 0:00:11.6]} 54... Re7 {[%clk 0:00:16.9]} 55.
Rf3 {[%clk 0:00:12.3]} 55... Rf7 {[%clk 0:00:17.8]} 56. Rc3 {[%clk 0:00:12.9]}
56... Kxh5 {[%clk 0:00:18.9]} 57. c5 {[%clk 0:00:14]} 57... bxc5 {[%clk
0:00:18.9]} 58. Rxc5 {[%clk 0:00:14.9]} 58... Kg4 {[%clk 0:00:20.8]} 59. Ra5
{[%clk 0:00:14.7]} 59... f4 {[%clk 0:00:22.1]} 60. Kg1 {[%clk 0:00:10.2]} 60...
g5 {[%clk 0:00:24]} 61. Kf2 {[%clk 0:00:10.8]} 61... Rb7 {[%clk 0:00:24.9]} 62.
Kg1 {[%clk 0:00:08.7]} 62... Kh4 {[%clk 0:00:25.2]} 63. Kf2 {[%clk 0:00:08.3]}
63... g4 {[%clk 0:00:26.2]} 64. Ra6 {[%clk 0:00:06.7]} 64... Rb2+ {[%clk
0:00:27.2]} 65. Kg1 {[%clk 0:00:05.4]} 65... Kg3 {[%clk 0:00:28.6]} 66. Ra3+
{[%clk 0:00:06.6]} 66... f3 {[%clk 0:00:29.8]} 67. gxf3 {[%clk 0:00:08.5]} 67...
Rb1# {[%clk 0:00:31.2]} 0-1

[Event "*** Titled Tuesday Blitz"]
[Site "Chess.com"]
[Date "2020.02.04"]
[Round "4"]
[White "Witik"]
[Black "jguerramzllo"]
[Result "0-1"]
[WhiteElo "2597"]
[BlackElo "2499"]
[TimeControl "180+2"]
[EndTime "13:53:18 PST"]
[Termination "jguerramzllo won by resignation"]

1. e4 {[%clk 0:03:01.9]} 1... e5 {[%clk 0:02:59.9]} 2. Nf3 {[%clk 0:02:57.8]}
2... Nc6 {[%clk 0:03:00.8]} 3. Nc3 {[%clk 0:02:58.2]} 3... Nf6 {[%clk
0:03:00.7]} 4. Bb5 {[%clk 0:02:58.8]} 4... Bd6 {[%clk 0:03:01.7]} 5. d3 {[%clk
0:02:59.5]} 5... O-O {[%clk 0:02:58.9]} 6. Bg5 {[%clk 0:02:59.8]} 6... a6 {[%clk
0:02:53.3]} 7. Ba4 {[%clk 0:03:00.2]} 7... b5 {[%clk 0:02:47.6]} 8. Bb3 {[%clk
0:03:01]} 8... Be7 {[%clk 0:02:44.6]} 9. a4 {[%clk 0:03:01.7]} 9... b4 {[%clk
0:02:37.2]} 10. Bxf6 {[%clk 0:03:02.5]} 10... Bxf6 {[%clk 0:02:37.1]} 11. Nd5
{[%clk 0:03:04.1]} 11... Rb8 {[%clk 0:02:24.2]} 12. a5 {[%clk 0:02:35.5]} 12...
d6 {[%clk 0:02:19.8]} 13. Rg1 {[%clk 0:02:23.7]} 13... Nd4 {[%clk 0:02:12.4]}
14. Nxd4 {[%clk 0:02:23.7]} 14... exd4 {[%clk 0:02:13.6]} 15. f4 {[%clk
0:02:09.3]} 15... c6 {[%clk 0:02:12.1]} 16. Nxf6+ {[%clk 0:02:08.7]} 16... Qxf6
{[%clk 0:02:13]} 17. Qf3 {[%clk 0:02:06.2]} 17... Be6 {[%clk 0:02:01.2]} 18. Kd2
{[%clk 0:01:37.8]} 18... Bxb3 {[%clk 0:01:59.8]} 19. cxb3 {[%clk 0:01:38.8]}
19... Qe6 {[%clk 0:02:01.1]} 20. Kc2 {[%clk 0:01:39.4]} 20... Rb5 {[%clk
0:02:01]} 21. Qd1 {[%clk 0:01:33.3]} 21... f5 {[%clk 0:01:46.3]} 22. Re1 {[%clk
0:01:32.2]} 22... fxe4 {[%clk 0:01:47]} 23. Rxe4 {[%clk 0:01:33]} 23... Qd5
{[%clk 0:01:48.4]} 24. Ra4 {[%clk 0:01:21.4]} 24... Rxa5 {[%clk 0:01:38.1]} 25.
Rxb4 {[%clk 0:01:10.7]} 25... Rb5 {[%clk 0:01:33.6]} 26. Rxb5 {[%clk 0:00:48.2]}
26... axb5 {[%clk 0:01:32.1]} 27. Qg4 {[%clk 0:00:48.1]} 27... Qc5+ {[%clk
0:01:28.6]} 28. Kb1 {[%clk 0:00:47.4]} 28... d5 {[%clk 0:01:06.4]} 29. Qe6+
{[%clk 0:00:43.8]} 29... Kh8 {[%clk 0:01:06.5]} 30. Qe7 {[%clk 0:00:41.6]} 30...
Qxe7 {[%clk 0:01:04.5]} 31. Rxe7 {[%clk 0:00:43.5]} 31... Kg8 {[%clk 0:01:04.5]}
32. g3 {[%clk 0:00:40]} 32... Rf6 {[%clk 0:01:00.1]} 33. Ka2 {[%clk 0:00:27.6]}
33... Rh6 {[%clk 0:00:54.5]} 34. Rc7 {[%clk 0:00:21.2]} 34... b4 {[%clk
0:00:51.6]} 35. h4 {[%clk 0:00:16.4]} 35... Rg6 {[%clk 0:00:52.6]} 36. Rb7
{[%clk 0:00:13]} 36... Rxg3 {[%clk 0:00:52.7]} 37. Rxb4 {[%clk 0:00:13.8]} 37...
Rxd3 {[%clk 0:00:53.9]} 38. Rb7 {[%clk 0:00:10.7]} 38... Rf3 {[%clk 0:00:54.2]}
39. Kb1 {[%clk 0:00:09.3]} 39... d3 {[%clk 0:00:52.2]} 40. Kc1 {[%clk
0:00:10.2]} 40... Rxf4 {[%clk 0:00:50.8]} 41. Rc7 {[%clk 0:00:11.2]} 41... Rf6
{[%clk 0:00:44.1]} 42. Kd2 {[%clk 0:00:11.4]} 42... h6 {[%clk 0:00:41]} 43. h5
{[%clk 0:00:09.7]} 43... g6 {[%clk 0:00:36.8]} 44. hxg6 {[%clk 0:00:09.4]} 44...
Rxg6 {[%clk 0:00:38]} 45. Kxd3 {[%clk 0:00:11.3]} 45... h5 {[%clk 0:00:39.1]}
46. Kd4 {[%clk 0:00:09.9]} 46... h4 {[%clk 0:00:39.1]} 47. Re7 {[%clk 0:00:11]}
47... h3 {[%clk 0:00:26.4]} 48. Re1 {[%clk 0:00:10.6]} 48... Kf7 {[%clk
0:00:20.6]} 49. Kc5 {[%clk 0:00:10.8]} 49... h2 {[%clk 0:00:20.3]} 50. Rh1
{[%clk 0:00:11.6]} 50... Rh6 {[%clk 0:00:21.4]} 51. b4 {[%clk 0:00:13.2]} 51...
Ke7 {[%clk 0:00:20.8]} 52. b5 {[%clk 0:00:13.9]} 52... cxb5 {[%clk 0:00:21]} 53.
Kxd5 {[%clk 0:00:15.5]} 53... Kd7 {[%clk 0:00:21.5]} 54. Kc5 {[%clk 0:00:16.1]}
54... Rh5+ {[%clk 0:00:22.4]} 55. Kb6 {[%clk 0:00:16]} 55... b4 {[%clk
0:00:22.8]} 56. b3 {[%clk 0:00:17.1]} 56... Kd6 {[%clk 0:00:22.8]} 57. Ka6
{[%clk 0:00:16.3]} 57... Kc5 {[%clk 0:00:21.6]} 58. Ka5 {[%clk 0:00:17]} 58...
Rh6 {[%clk 0:00:21.6]} 59. Rc1+ {[%clk 0:00:17.8]} 59... Kd4 {[%clk 0:00:22.5]}
60. Rh1 {[%clk 0:00:16.9]} 60... Kc3 {[%clk 0:00:23.6]} 61. Ka4 {[%clk
0:00:17.4]} 61... Ra6+ {[%clk 0:00:21.5]} 62. Kb5 {[%clk 0:00:18.8]} 62... Rh6
{[%clk 0:00:22.5]} 63. Ka4 {[%clk 0:00:18.9]} 63... Rh4 {[%clk 0:00:18.3]} 64.
Rc1+ {[%clk 0:00:17.4]} 64... Kd2 {[%clk 0:00:14.7]} 65. Rh1 {[%clk 0:00:19.3]}
65... Kd3 {[%clk 0:00:13.2]} 66. Kb5 {[%clk 0:00:18]} 66... Ke3 {[%clk
0:00:10.8]} 67. Kc5 {[%clk 0:00:18.1]} 67... Kf3 {[%clk 0:00:09.2]} 68. Kb5
{[%clk 0:00:19.4]} 68... Kg2 {[%clk 0:00:07.9]} 69. Rc1 {[%clk 0:00:19.4]} 69...
h1=Q {[%clk 0:00:07.9]} 70. Rxh1 {[%clk 0:00:19.9]} 70... Kxh1 {[%clk 0:00:09]}
0-1

[Event "*** Titled Tuesday Blitz"]
[Site "Chess.com"]
[Date "2020.02.04"]
[Round "4"]
[White "Aygehovit1992"]
[Black "rasmussvane"]
[Result "0-1"]
[WhiteElo "2653"]
[BlackElo "2881"]
[TimeControl "180+2"]
[EndTime "13:53:33 PST"]
[Termination "rasmussvane won by resignation"]

1. e4 {[%clk 0:03:01.9]} 1... c6 {[%clk 0:03:01.1]} 2. d4 {[%clk 0:03:02.5]}
2... d5 {[%clk 0:03:03]} 3. e5 {[%clk 0:03:04.1]} 3... Bf5 {[%clk 0:03:03.6]} 4.
Nf3 {[%clk 0:03:05.3]} 4... e6 {[%clk 0:03:04.5]} 5. Be2 {[%clk 0:03:06.3]} 5...
Ne7 {[%clk 0:03:05.7]} 6. O-O {[%clk 0:03:06.9]} 6... Ng6 {[%clk 0:03:07]} 7.
Be3 {[%clk 0:03:03.5]} 7... Nd7 {[%clk 0:03:04.6]} 8. Nbd2 {[%clk 0:03:03.7]}
8... f6 {[%clk 0:02:59.7]} 9. exf6 {[%clk 0:03:03.6]} 9... Qxf6 {[%clk
0:03:01.6]} 10. c4 {[%clk 0:02:55.8]} 10... Bd6 {[%clk 0:03:01.6]} 11. Qb3
{[%clk 0:02:55.3]} 11... Rb8 {[%clk 0:03:02.6]} 12. Rfe1 {[%clk 0:02:38.8]}
12... O-O {[%clk 0:03:03.3]} 13. Nf1 {[%clk 0:02:40]} 13... Nf4 {[%clk
0:02:48.2]} 14. Bxf4 {[%clk 0:02:40.3]} 14... Bxf4 {[%clk 0:02:49.1]} 15. Ng3
{[%clk 0:02:41.7]} 15... Bg4 {[%clk 0:02:37.5]} 16. Rad1 {[%clk 0:02:35.2]}
16... Nb6 {[%clk 0:02:38.3]} 17. h3 {[%clk 0:01:39.1]} 17... Bxf3 {[%clk
0:02:09.8]} 18. Qxf3 {[%clk 0:01:39.7]} 18... Bxg3 {[%clk 0:01:53]} 19. Qxg3
{[%clk 0:01:36.7]} 19... Nxc4 {[%clk 0:01:54.1]} 20. Bxc4 {[%clk 0:01:20.8]}
20... dxc4 {[%clk 0:01:56]} 21. Re4 {[%clk 0:01:22.4]} 21... Rbd8 {[%clk
0:01:56.5]} 22. Rde1 {[%clk 0:01:23.5]} 22... Rxd4 {[%clk 0:01:07.5]} 23. Rxe6
{[%clk 0:01:23.8]} 23... Rd1 {[%clk 0:01:06.9]} 24. Rxf6 {[%clk 0:01:15.8]}
24... Rxf6 {[%clk 0:01:07.3]} 25. Kh2 {[%clk 0:01:17.4]} 25... Rxe1 {[%clk
0:01:08.4]} 26. Qb8+ {[%clk 0:01:14.5]} 26... Rf8 {[%clk 0:01:08.6]} 27. Qxb7
{[%clk 0:01:15.5]} 27... Re2 {[%clk 0:00:28.6]} 28. Qxc6 {[%clk 0:01:12.8]}
28... Rxb2 {[%clk 0:00:11.9]} 29. Qxc4+ {[%clk 0:01:11.2]} 29... Kh8 {[%clk
0:00:12.7]} 30. f3 {[%clk 0:01:07.9]} 30... h6 {[%clk 0:00:12.6]} 31. Qa4 {[%clk
0:00:50.5]} 31... Rb7 {[%clk 0:00:09.7]} 32. h4 {[%clk 0:00:46.3]} 32... Re7
{[%clk 0:00:10]} 33. f4 {[%clk 0:00:43.1]} 33... Rf6 {[%clk 0:00:09.1]} 34. h5
{[%clk 0:00:40.3]} 34... Ref7 {[%clk 0:00:08.1]} 35. g3 {[%clk 0:00:40.3]} 35...
Rf5 {[%clk 0:00:05.9]} 36. Kg2 {[%clk 0:00:40.5]} 36... Re7 {[%clk 0:00:05.3]}
37. g4 {[%clk 0:00:38]} 37... Rf8 {[%clk 0:00:05.4]} 38. Qd4 {[%clk 0:00:25.4]}
38... Rfe8 {[%clk 0:00:06.1]} 39. g5 {[%clk 0:00:22.9]} 39... hxg5 {[%clk
0:00:06.8]} 40. fxg5 {[%clk 0:00:23.9]} 40... Re5 {[%clk 0:00:08.4]} 41. Qf4
{[%clk 0:00:15.3]} 41... Re2+ {[%clk 0:00:09]} 42. Kf3 {[%clk 0:00:14.9]} 42...
Re1 {[%clk 0:00:10.5]} 43. Qd4 {[%clk 0:00:11.5]} 43... R1e5 {[%clk 0:00:09.6]}
44. Kf4 {[%clk 0:00:09.2]} 44... R5e7 {[%clk 0:00:10.9]} 45. h6 {[%clk
0:00:09.8]} 45... Kh7 {[%clk 0:00:12.2]} 46. Qd3+ {[%clk 0:00:07.9]} 46... Kg8
{[%clk 0:00:12.8]} 47. Qd5+ {[%clk 0:00:07.2]} 47... Kh7 {[%clk 0:00:13.1]} 48.
Qf5+ {[%clk 0:00:07.3]} 48... g6 {[%clk 0:00:14]} 49. Qd5 {[%clk 0:00:05.6]}
49... Rf8+ {[%clk 0:00:14.5]} 50. Kg4 {[%clk 0:00:06.3]} 50... Ref7 {[%clk
0:00:15.9]} 51. Qd6 {[%clk 0:00:05.7]} 51... Rf5 {[%clk 0:00:13]} 52. Qd4 {[%clk
0:00:04.1]} 52... R8f7 {[%clk 0:00:13.6]} 53. a4 {[%clk 0:00:05]} 53... Rf2
{[%clk 0:00:12.6]} 54. a5 {[%clk 0:00:04.7]} 54... Rg2+ {[%clk 0:00:12.2]} 55.
Kh4 {[%clk 0:00:05.3]} 55... Ra2 {[%clk 0:00:08.1]} 56. Qd5 {[%clk 0:00:03.3]}
56... Ra4+ {[%clk 0:00:08.3]} 57. Kg3 {[%clk 0:00:04]} 57... Raf4 {[%clk
0:00:10.2]} 58. Qe5 {[%clk 0:00:03.8]} 58... R4f5 {[%clk 0:00:11.3]} 59. Qe3
{[%clk 0:00:04.4]} 59... Rxa5 {[%clk 0:00:12.3]} 60. Kh4 {[%clk 0:00:02.8]}
60... Raf5 {[%clk 0:00:13.4]} 61. Qd2 {[%clk 0:00:03.1]} 61... a5 {[%clk
0:00:13.3]} 62. Kg4 {[%clk 0:00:03.7]} 62... Rf4+ {[%clk 0:00:12.1]} 63. Kg3
{[%clk 0:00:04.1]} 63... Rf3+ {[%clk 0:00:13.3]} 64. Kg4 {[%clk 0:00:02.6]}
64... R7f4+ {[%clk 0:00:13.6]} 65. Qxf4 {[%clk 0:00:04.5]} 65... Rxf4+ {[%clk
0:00:14.9]} 66. Kxf4 {[%clk 0:00:06.4]} 66... a4 {[%clk 0:00:16.8]} 67. Ke4
{[%clk 0:00:07.8]} 67... a3 {[%clk 0:00:18.7]} 68. Kd3 {[%clk 0:00:09.7]} 68...
a2 {[%clk 0:00:20.6]} 69. Kc2 {[%clk 0:00:11.6]} 69... a1=Q {[%clk 0:00:22.2]}
0-1